bitfinex/quotes_SOLUSD_20250617
["timestamp","ask_amount","ask_price","bid_price","bid_amount"]
[1750124784364,6.03410394,151.58,151.55,12.57839862]
[1750124784558,27.28,151.58,151.55,12.57839862]
[1750124786633,27.28,151.58,151.55,5.98]
[1750124786634,6.03410394,151.57,151.55,5.98]
[1750124786936,33.31410394,151.56,151.52,6.59964917]
[1750124787259,24.6837528,151.55,151.53,5.98]
[1750124787442,6.03410394,151.54,151.53,5.98]
[1750124787647,33.31410394,151.54,151.53,5.98]
[1750124788839,51.9637528,151.54,151.53,5.98]
[1750124789366,58.84699371,151.54,151.53,5.98]
[1750124789542,63.74852664,151.54,151.53,5.98]
[1750124789745,58.84699371,151.54,151.53,5.98]
[1750124790146,63.74485723,151.54,151.53,5.98]
[1750124790365,52.24807594,151.54,151.53,5.98]
[1750124791447,58.84699371,151.54,151.53,5.98]
[1750124791758,52.24807594,151.54,151.53,5.98]
[1750124792356,58.84699371,151.54,151.53,5.98]
[1750124792860,51.9637528,151.54,151.53,5.98]
[1750124793539,58.84699371,151.54,151.53,5.98]
[1750124793766,58.98915528,151.54,151.53,5.98]
[1750124794470,91.39139906,151.54,151.53,5.98]
[1750124794671,82.85559658,151.54,151.53,5.98]
[1750124794903,77.9637528,151.54,151.53,5.98]
[1750124796374,50.6837528,151.54,151.53,5.98]
[1750124796564,77.9837528,151.54,151.53,5.98]
[1750124798764,84.58267057,151.54,151.53,5.98]
[1750124798970,77.9837528,151.54,151.53,5.98]
[1750124799184,50.6837528,151.54,151.53,5.98]
[1750124799375,77.9837528,151.54,151.53,5.98]
[1750124799568,26.0,151.54,151.53,5.98]
[1750124799779,53.3,151.54,151.53,5.98]
[1750124799979,59.33410394,151.54,151.53,5.98]
[1750124800373,24.6837528,151.57,151.53,12.57923803]
[1750124800682,27.3,151.56,151.53,12.57923803]
[1750124802190,54.12147152,151.57,151.53,5.98]
[1750124802486,33.33410394,151.56,151.53,5.98]
[1750124802674,24.6837528,151.55,151.53,5.98]
[1750124802870,51.9837528,151.54,151.53,5.98]
[1750124803187,77.9837528,151.54,151.53,5.98]
[1750124804985,53.3,151.54,151.53,5.98]
[1750124805184,26.0,151.54,151.53,5.98]
[1750124806167,27.28,151.55,151.53,5.98]
[1750124808599,29.43771872,151.57,151.53,18.61333453]
[1750124808800,4.90680725,151.6,151.56,6.03410394]
[1750124808999,4.90680725,151.61,151.58,6.03410394]
[1750124809165,3.43940118,151.6,151.57,6.03410394]
[1750124809479,9.47350512,151.6,151.56,6.03410394]
[1750124809672,3.43940118,151.6,151.56,6.03410394]
[1750124810073,3.43940118,151.6,151.57,6.03410394]
[1750124810581,3.43940118,151.6,151.57,12.6314124]
[1750124811876,45.92964886,151.61,151.57,12.6314124]
[1750124812082,49.36889472,151.61,151.57,12.6314124]
[1750124812683,45.92964886,151.61,151.57,12.6314124]
[1750124812888,29.43934566,151.62,151.58,6.03410394]
[1750124813188,56.71934566,151.62,151.58,6.03410394]
[1750124813385,29.43934566,151.62,151.59,6.03410394]
[1750124813590,3.43934566,151.62,151.6,12.01410394]
[1750124813896,71.92964886,151.65,151.61,12.62997492]
[1750124814080,3.43847914,151.64,151.61,12.62997492]
[1750124814286,3.43847914,151.64,151.61,6.59587098]
[1750124815605,3.43847914,151.64,151.6,18.61030999]
[1750124816098,30.71847914,151.64,151.6,18.61030999]
[1750124817007,30.71847914,151.64,151.61,12.62976412]
[1750124818001,30.71847914,151.64,151.61,6.59566018]
[1750124818205,30.71847914,151.64,151.61,12.62976412]
[1750124819296,24.6837528,151.63,151.6,12.57625883]
[1750124819878,18.64964886,151.63,151.6,12.57625883]
[1750124820078,24.6837528,151.63,151.6,5.98]
[1750124820287,51.9637528,151.63,151.6,5.98]
[1750124820490,51.9637528,151.63,151.6,12.57626021]
[1750124820678,45.92964886,151.63,151.6,12.57626021]
[1750124821409,18.64964886,151.63,151.6,12.57626021]
[1750124821615,45.92964886,151.63,151.6,12.57626021]
[1750124821907,16.82156439,151.7,151.62,6.03410394]
[1750124822203,16.82156439,151.7,151.6,12.57626021]
[1750124822204,33.29410394,151.71,151.67,6.03410394]
[1750124822386,3.43735461,151.69,151.67,11.99410394]
[1750124822580,3.43735461,151.69,151.67,5.96]
[1750124823982,9.47145855,151.69,151.67,5.96]
[1750124824181,3.43735461,151.69,151.67,5.96]
[1750124828211,18.64964886,151.7,151.67,12.55323376]
[1750124828393,45.90964886,151.7,151.67,18.5873377]
[1750124829105,26.0,151.71,151.67,12.55323376]
[1750124829279,26.0,151.71,151.68,6.03410394]
[1750124829894,45.90964886,151.72,151.68,12.6268326]
[1750124830115,18.64964886,151.72,151.68,12.6268326]
[1750124830305,45.90964886,151.72,151.68,12.6268326]
[1750124830684,6.03410394,151.71,151.67,5.96]
[1750124830884,6.03410394,151.7,151.67,5.96]
[1750124831107,33.29410394,151.7,151.67,12.55319934]
[1750124831409,27.26,151.7,151.67,12.55319934]
[1750124832206,27.26,151.7,151.67,18.58730328]
[1750124832441,24.6837528,151.72,151.68,6.03410394]
[1750124832713,51.9437528,151.72,151.67,18.58730328]
[1750124833901,6.03410394,151.71,151.67,18.58730328]
[1750124834907,51.9437528,151.72,151.67,18.58730328]
[1750124835386,51.9237528,151.72,151.68,6.03410394]
[1750124835586,18.64964886,151.72,151.68,6.03410394]
[1750124836009,24.6837528,151.72,151.68,6.03410394]
[1750124836823,24.6837528,151.72,151.68,12.62671193]
[1750124837536,26.0,151.73,151.7,6.03410394]
[1750124837718,29.4365298,151.73,151.69,6.03410394]
[1750124838210,26.0,151.73,151.69,6.03410394]
[1750124838611,162.31995646,151.81,151.72,6.03410394]
[1750124838813,162.31995646,151.81,151.75,6.03410394]
[1750124838814,33.27410394,151.8,151.75,6.03410394]
[1750124839031,18.64964886,151.78,151.75,18.58382097]
[1750124839330,7.68510394,151.82,151.77,6.03410394]
[1750124839505,27.24,151.81,151.78,6.03410394]
[1750124839841,30.67469984,151.81,151.78,6.03410394]
[1750124840012,3.43469984,151.81,151.78,6.03410394]
[1750124840213,3.43469984,151.81,151.77,6.03410394]
[1750124840815,3.43469984,151.81,151.77,12.62270916]
[1750124841429,9.46880378,151.81,151.77,6.58860522]
[1750124841626,9.46880378,151.81,151.76,12.62340386]
[1750124842320,6.03410394,151.78,151.75,5.96]
[1750124842525,50.6837528,151.76,151.7,5.96]
[1750124842724,6.03410394,151.72,151.7,5.96]
[1750124843023,6.03410394,151.71,151.7,5.96]
[1750124843219,24.6837528,151.71,151.7,5.96]
[1750124843536,6.03410394,151.71,151.7,5.96]
[1750124844108,24.6837528,151.71,151.7,5.96]
[1750124844328,24.96807594,151.71,151.7,5.96]
[1750124844943,33.56086565,151.71,151.7,5.96]
[1750124848421,25.5254953,151.71,151.7,5.96]
[1750124848637,33.56086565,151.71,151.7,5.96]
[1750124848844,171.70415347,151.77,151.7,5.96]
[1750124849152,8.03537035,151.74,151.7,13.99537035]
[1750124849315,61.27537035,151.74,151.7,13.99537035]
[1750124849736,61.27537035,151.74,151.7,20.58720956]
[1750124849933,26.0,151.74,151.71,8.03537035]
[1750124850631,61.27537035,151.76,151.71,8.03537035]
[1750124851038,61.27537035,151.76,151.71,14.62681515]
[1750124851353,34.03537035,151.76,151.71,14.62681515]
[1750124851520,61.27537035,151.76,151.71,14.62681515]
[1750124851939,8.03537035,151.73,151.7,5.96]
[1750124852647,35.27537035,151.74,151.7,5.96]
[1750124854047,27.24,151.74,151.7,20.58717206]
[1750124854223,26.68501921,151.75,151.71,8.03537035]
[1750124854224,27.24,151.75,151.71,8.03537035]
[1750124854419,35.27537035,151.75,151.71,8.03537035]
[1750124855239,27.24,151.75,151.71,14.62664768]
[1750124855439,26.0,151.76,151.72,8.03537035]
[1750124856634,26.0,151.76,151.72,14.62617166]
[1750124858151,34.03537035,151.76,151.72,6.59080131]
[1750124858445,40.62478131,151.76,151.71,8.03537035]
[1750124858632,26.68501921,151.75,151.7,20.58717929]
[1750124859451,26.68501921,151.75,151.71,8.03537035]
[1750124859750,26.68501921,151.75,151.71,14.62687961]
[1750124859932,18.64964886,151.75,151.71,14.62687961]
[1750124860748,26.0,151.76,151.72,8.03537035]
[1750124860953,8.31969349,151.78,151.73,8.03537035]
[1750124861128,18.64964886,151.77,151.73,8.03537035]
[1750124861451,26.68501921,151.77,151.73,8.03537035]
[1750124862553,18.64964886,151.77,151.73,14.62600619]
[1750124863550,26.0,151.78,151.74,8.03537035]
[1750124863730,61.25537035,151.78,151.74,8.03537035]
[1750124863931,64.69096564,151.78,151.74,8.03537035]
[1750124865051,8.03537035,151.76,151.72,8.03537035]
[1750124865354,18.64964886,151.77,151.73,8.03537035]
[1750124866855,36.00660271,151.78,151.74,5.35100742]
[1750124867158,3.43559529,151.78,151.74,5.35100742]
[1750124867941,3.43559529,151.78,151.74,11.94101124]
[1750124868140,26.0,151.79,151.76,5.35100742]
[1750124868442,29.43484866,151.79,151.77,5.96]
[1750124869362,3.43484866,151.79,151.77,5.96]
[1750124871233,3.43484866,151.79,151.77,12.54881689]
[1750124871955,31.35100742,151.81,151.77,12.54881689]
[1750124872332,34.78559937,151.81,151.77,12.54881689]
[1750124872733,5.35100742,151.8,151.77,12.54881689]
[1750124873762,5.35100742,151.79,151.77,5.96]
[1750124874162,5.35100742,151.8,151.77,12.54880228]
[1750124874464,34.78559937,151.81,151.77,12.54880228]
[1750124874758,5.35100742,151.8,151.77,12.54880228]
[1750124875241,34.78559937,151.81,151.77,12.54880228]
[1750124875437,5.35100742,151.8,151.77,12.54880228]
[1750124875837,29.43459195,151.81,151.77,12.54880228]
[1750124876270,5.35100742,151.8,151.77,12.54880228]
[1750124877063,5.35100742,151.79,151.77,5.96]
[1750124877262,36.0219104,151.81,151.77,5.96]
[1750124877263,5.35100742,151.78,151.77,5.96]
[1750124878050,24.00065628,151.78,151.77,5.96]
[1750124878668,51.20065628,151.78,151.77,5.96]
[1750124879869,45.84964886,151.78,151.77,5.96]
[1750124880049,32.55100742,151.78,151.77,5.96]
[1750124880752,51.62714099,151.78,151.77,5.96]
[1750124880974,84.21562432,151.78,151.77,5.96]
[1750124881153,77.62714099,151.78,151.77,5.96]
[1750124881476,84.07346275,151.78,151.77,5.96]
[1750124881844,77.48497942,151.78,151.77,5.96]
[1750124882855,3.43459195,151.81,151.77,12.54868545]
[1750124883051,27.2,151.8,151.77,12.54868545]
[1750124883259,61.98559937,151.81,151.77,12.54868545]
[1750124883982,34.78559937,151.81,151.77,12.54868545]
[1750124884159,27.43524823,151.81,151.77,12.54868545]
[1750124884369,53.43524823,151.81,151.77,12.54868545]
[1750124884860,80.63524823,151.81,151.77,12.54868545]
[1750124885468,5.35100742,151.8,151.77,5.96]
[1750124885653,4.85100742,151.8,151.77,5.96]
[1750124886480,5.35100742,151.8,151.77,5.96]
[1750124887456,5.35100742,151.8,151.77,12.54888784]
[1750124888275,48.08424081,151.81,151.77,12.54888784]
[1750124888480,53.43524823,151.81,151.77,12.54888784]
[1750124888652,29.43459195,151.81,151.77,17.89989526]
[1750124888857,3.43459195,151.81,151.79,5.35100742]
[1750124889054,3.43459195,151.81,151.75,8.1048]
[1750124889357,5.35100742,151.79,151.76,5.94]
[1750124890085,5.35100742,151.78,151.76,5.94]
[1750124890289,27.2,151.8,151.76,5.94]
[1750124890290,5.35100742,151.77,151.76,5.94]
[1750124891282,5.35100742,151.78,151.76,5.94]
[1750124893484,5.35100742,151.77,151.76,5.94]
[1750124893689,18.64964886,151.76,151.68,60.30618451]
[1750124893858,5.35100742,151.71,151.69,5.94]
[1750124894368,27.2,151.72,151.69,5.94]
[1750124895102,5.35100742,151.71,151.69,5.94]
[1750124895264,24.00065628,151.7,151.69,5.94]
[1750124895464,30.59261409,151.7,151.69,5.94]
[1750124895670,35.51382929,151.7,151.69,5.94]
[1750124895863,30.59261409,151.7,151.69,5.94]
[1750124896068,28.92187148,151.7,151.69,5.94]
[1750124896380,30.59261409,151.7,151.69,5.94]
[1750124897077,57.79261409,151.7,151.69,5.94]
[1750124897282,67.91062886,151.7,151.69,5.94]
[1750124897482,57.79261409,151.7,151.69,5.94]
[1750124898058,62.70716073,151.7,151.69,5.94]
[1750124898383,57.79261409,151.7,151.69,5.94]
[1750124899091,18.933972,151.69,151.68,60.30618451]
[1750124899282,29.19978984,151.69,151.68,60.30618451]
[1750124899589,30.87737179,151.69,151.68,60.30618451]
[1750124899794,35.93131364,151.69,151.68,60.30618451]
[1750124900159,0.14216157,151.68,151.64,58.14]
[1750124900383,5.35100742,151.65,151.64,58.14]
[1750124900583,27.2,151.67,151.64,58.14]
[1750124900791,32.55100742,151.67,151.64,58.14]
[1750124900967,5.35100742,151.65,151.64,58.14]
[1750124901795,5.35100742,151.66,151.64,58.14]
[1750124902096,32.55100742,151.67,151.64,58.14]
[1750124902595,32.55100742,151.67,151.64,64.73454228]
[1750124902768,32.05100742,151.67,151.64,64.73454228]
[1750124903869,32.05100742,151.67,151.64,58.14]
[1750124904066,5.35100742,151.69,151.64,70.08556377]
[1750124904282,5.35100742,151.69,151.65,5.35100742]
[1750124904594,5.35100742,151.69,151.64,70.08556377]
[1750124904793,5.35100742,151.68,151.64,70.08556377]
[1750124905088,5.35100742,151.66,151.64,58.14]
[1750124905387,5.35100742,151.65,151.64,5.94]
[1750124905562,30.5947875,151.65,151.64,5.94]
[1750124905896,24.00065628,151.65,151.64,5.94]
[1750124906068,30.5947875,151.65,151.64,5.94]
[1750124906994,31.02127221,151.65,151.64,5.94]
[1750124909478,24.00065628,151.65,151.64,5.94]
[1750124909676,51.20065628,151.65,151.64,5.94]
[1750124909986,24.00065628,151.65,151.64,5.94]
[1750124910169,58.57100742,151.66,151.64,5.94]
[1750124911174,65.1648743,151.66,151.64,5.94]
[1750124911384,58.57100742,151.66,151.64,5.94]
[1750124912070,24.28497942,151.65,151.64,5.94]
[1750124912796,30.87911064,151.65,151.64,5.94]
[1750124912998,24.28497942,151.65,151.64,5.94]
[1750124913792,18.933972,151.65,151.64,5.94]
[1750124914108,24.28497942,151.65,151.64,5.94]
[1750124915294,5.35100742,151.65,151.64,5.94]
[1750124916897,24.00065628,151.65,151.64,5.94]
[1750124918774,30.87911064,151.65,151.64,5.94]
[1750124919696,31.02127221,151.65,151.64,5.94]
[1750124921010,30.87911064,151.65,151.64,5.94]
[1750124921711,24.00065628,151.65,151.64,5.94]
[1750124922195,18.64964886,151.68,151.64,5.94]
[1750124922554,5.35100742,151.65,151.64,5.94]
[1750124923398,51.22065628,151.65,151.64,5.94]
[1750124924007,32.57100742,151.66,151.64,5.94]
[1750124924310,5.35100742,151.66,151.64,5.94]
[1750124924608,77.22065628,151.68,151.64,12.53443452]
[1750124924786,3.43789447,151.67,151.64,17.88544194]
[1750124925185,5.35100742,151.7,151.66,5.35100742]
[1750124925411,5.35100742,151.7,151.65,5.35100742]
[1750124925584,3.43744593,151.68,151.65,5.35100742]
[1750124927603,3.43744593,151.68,151.65,11.94475981]
[1750124928413,27.2,151.7,151.65,11.94475981]
[1750124928611,35.98837213,151.7,151.65,11.94475981]
[1750124931307,5.35100742,151.69,151.65,11.94475981]
[1750124932001,35.98837213,151.7,151.65,11.94475981]
[1750124932201,18.64964886,151.72,151.68,5.35100742]
[1750124932417,24.00065628,151.72,151.68,5.35100742]
[1750124932714,3.43678907,151.71,151.68,5.35100742]
[1750124932928,5.35100742,151.74,151.69,5.35100742]
[1750124933101,5.35100742,151.74,151.7,5.35100742]
[1750124933302,45.84964886,151.75,151.71,5.94]
[1750124933532,24.00065628,151.75,151.71,5.94]
[1750124933824,5.35100742,151.74,151.71,5.94]
[1750124934225,5.35100742,151.74,151.71,12.53135232]
[1750124934927,18.64964886,151.75,151.71,17.88235974]
[1750124935101,180.45100742,151.76,151.72,5.35100742]
[1750124935295,18.64964886,151.76,151.72,5.35100742]
[1750124935502,5.35100742,151.78,151.73,5.35100742]
[1750124935805,3.43516726,151.77,151.73,5.35100742]
[1750124936218,3.43516726,151.77,151.74,6.59022011]
[1750124936411,5.35100742,151.78,151.74,6.59022011]
[1750124936618,8.78630972,151.78,151.74,6.59022011]
[1750124937299,8.78630972,151.78,151.73,5.35100742]
[1750124937550,5.35100742,151.76,151.72,5.35100742]
[1750124938425,5.35100742,151.73,151.69,5.92]
[1750124938726,5.35100742,151.71,151.69,5.92]
[1750124939605,5.35100742,151.7,151.69,5.92]
[1750124940109,5.35100742,151.71,151.69,5.92]
[1750124940510,5.35100742,151.7,151.69,5.92]
[1750124941438,26.0,151.73,151.69,5.92]
[1750124941637,5.35100742,151.73,151.69,11.27100742]
[1750124941805,5.35100742,151.73,151.69,5.92]
[1750124942005,5.35100742,151.73,151.69,12.5123794]
[1750124942305,5.35100742,151.74,151.69,17.86338682]
[1750124942500,5.35100742,151.75,151.71,5.35100742]
[1750124942727,5.35100742,151.77,151.73,5.35100742]
[1750124942910,5.35100742,151.76,151.71,5.35100742]
[1750124943116,5.35100742,151.76,151.72,5.35100742]
[1750124943315,5.35100742,151.77,151.72,5.35100742]
[1750124943516,5.35100742,151.77,151.73,5.35100742]
[1750124944633,5.35100742,151.77,151.73,11.94152718]
[1750124945053,8.78630972,151.78,151.73,11.94152718]
[1750124945224,8.78630972,151.78,151.74,5.35100742]
[1750124946121,5.35100742,151.77,151.71,6.5915233]
[1750124946432,5.35100742,151.76,151.71,11.94253072]
[1750124946831,5.35100742,151.77,151.72,5.35100742]
[1750124947935,5.35100742,151.76,151.71,11.94253072]
[1750124948435,8.78630972,151.78,151.74,5.35100742]
[1750124948732,34.05196652,151.8,151.71,6.5915233]
[1750124948733,11.63967701,151.82,151.75,5.35100742]
[1750124948943,5.35100742,151.8,151.76,5.92]
[1750124949236,8.78587224,151.8,151.76,5.92]
[1750124949740,8.78587224,151.8,151.76,11.27100742]
[1750124949927,8.78587224,151.8,151.76,5.92]
[1750124950235,5.35100742,151.79,151.76,5.92]
[1750124950436,3.43486482,151.8,151.76,12.50927907]
[1750124950624,5.35100742,151.79,151.76,12.50927907]
[1750124952238,5.35100742,151.77,151.76,5.92]
[1750124952442,5.35100742,151.77,151.71,16.47880825]
[1750124952443,5.35100742,151.77,151.75,5.92]
[1750124952617,5.35100742,151.76,151.75,5.92]
[1750124952824,5.35100742,151.78,151.75,5.92]
[1750124953129,3.71918796,151.8,151.75,11.27100742]
[1750124953130,3.43486482,151.8,151.75,11.27100742]
[1750124953336,3.43486482,151.8,151.77,5.35100742]
[1750124953636,4.91063404,151.82,151.79,11.93905669]
[1750124956940,4.91063404,151.82,151.79,14.60764027]
[1750124957428,4.91063404,151.82,151.77,6.58862229]
[1750124957742,4.91063404,151.82,151.78,8.019591]
[1750124958831,4.91063404,151.82,151.79,8.019591]
[1750124959035,4.91063404,151.82,151.8,8.019591]
[1750124959349,4.91063404,151.82,151.8,14.6068973]
[1750124961049,4.91063404,151.82,151.8,6.5873063]
[1750124961747,4.41063404,151.82,151.8,6.5873063]
[1750124962224,4.41063404,151.82,151.77,23.06121104]
[1750124962551,4.41063404,151.82,151.79,8.019591]
[1750124963338,4.41063404,151.82,151.8,14.60720628]
[1750124963540,4.41063404,151.82,151.81,8.019591]
[1750124963849,4.41063404,151.82,151.8,14.60720628]
[1750124964048,4.41063404,151.82,151.8,8.019591]
[1750124964249,4.41063404,151.82,151.79,6.58791894]
[1750124964430,4.41063404,151.82,151.8,8.019591]
[1750124965331,4.41063404,151.82,151.79,14.60750994]
[1750124965654,4.41063404,151.82,151.81,8.019591]
[1750124967339,4.41063404,151.82,151.81,14.60677234]
[1750124967536,4.41063404,151.82,151.8,14.60716288]
[1750124967947,4.41063404,151.82,151.81,5.92]
[1750124969247,12.43022504,151.82,151.81,5.92]
[1750124969960,4.41063404,151.82,151.81,5.92]
[1750124972050,4.41063404,151.82,151.81,12.50718134]
[1750124972565,4.41063404,151.82,151.81,20.52677234]
[1750124972729,4.41063404,151.82,151.81,12.50718134]
[1750124974955,4.41063404,151.82,151.81,20.52677234]
[1750124975857,4.41063404,151.82,151.76,8.1159]
[1750124976057,10.99739982,151.82,151.77,5.92]
[1750124976249,8.019591,151.78,151.77,5.92]
[1750124976445,26.66923986,151.78,151.77,5.92]
[1750124976660,44.64964886,151.77,151.73,5.92]
[1750124976861,8.019591,151.74,151.73,5.92]
[1750124977663,52.953563,151.74,151.73,5.92]
[1750124977862,12.62105175,151.74,151.69,25.70658101]
[1750124978067,34.019591,151.74,151.69,32.29879452]
[1750124978271,4.89385173,151.76,151.69,32.29879452]
[1750124978272,4.89385173,151.75,151.7,8.019591]
[1750124978563,8.019591,151.74,151.7,8.019591]
[1750124978956,8.019591,151.74,151.71,6.5915233]
[1750124979163,8.019591,151.74,151.72,5.92]
[1750124979540,8.019591,151.75,151.72,5.92]
[1750124979741,8.019591,151.76,151.72,5.92]
[1750124980443,8.019591,151.77,151.73,8.019591]
[1750124980643,8.019591,151.78,151.73,8.019591]
[1750124981168,8.019591,151.78,151.74,14.60981111]
[1750124981973,34.019591,151.79,151.74,14.60981111]
[1750124982149,8.019591,151.8,151.74,23.06577039]
[1750124982342,8.019591,151.79,151.75,8.019591]
[1750124983063,8.019591,151.79,151.76,6.5893516]
[1750124983271,11.45516112,151.81,151.76,14.6089426]
[1750124983448,11.45516112,151.81,151.77,8.019591]
[1750124984252,11.45516112,151.81,151.76,14.6089426]
[1750124985751,8.019591,151.8,151.76,6.5893516]
[1750124986058,8.019591,151.78,151.76,6.5893516]
[1750124986265,8.019591,151.79,151.76,6.5893516]
[1750124986667,22.08521898,151.81,151.77,5.92]
[1750124986668,8.019591,151.8,151.77,5.92]
[1750124987272,11.45516112,151.81,151.77,13.939591]
[1750124987577,3.43557012,151.81,151.79,8.019591]
[1750124987772,3.43557012,151.81,151.8,6.58761528]
[1750124988367,3.43557012,151.81,151.8,14.60720628]
[1750124988978,3.43557012,151.81,151.8,6.58761528]
[1750124989559,3.43557012,151.81,151.8,11.93409165]
[1750124990865,3.43557012,151.81,151.8,14.60669111]
[1750124991247,3.43557012,151.81,151.79,8.01907583]
[1750124992059,3.43557012,151.81,151.79,14.60674328]
[1750124992398,3.43557012,151.81,151.8,5.92]
[1750124992994,3.43557012,151.81,151.77,5.92]
[1750124992995,30.10429481,151.81,151.77,5.92]
[1750124993284,8.01907583,151.8,151.77,5.92]
[1750124993846,8.01907583,151.79,151.77,5.92]
[1750124997090,8.01907583,151.78,151.77,5.92]
[1750124997949,26.66872469,151.78,151.77,5.92]
[1750124998557,11.43915615,151.9,151.89,6.86803503]
[1750124998752,8.01907583,152.0,151.89,15.02927243]
[1750124998954,8.01907583,152.0,151.9,0.42648471]
[1750124999262,6.34,152.06,151.98,8.01907583]
[1750124999468,6.34,152.06,152.01,8.01907583]
[1750124999875,8.01907583,152.05,151.95,26.0]
[1750125000179,8.01907583,152.04,151.98,8.01907583]
[1750125000357,8.01907583,152.05,151.99,8.01907583]
[1750125000557,18.64964886,152.04,151.99,8.01907583]
[1750125001276,62.43907583,152.05,152.0,8.01907583]
[1750125001578,62.43907583,152.05,151.98,8.01907583]
[1750125001579,26.66872469,152.04,151.98,8.01907583]
[1750125001794,44.64964886,152.04,151.99,8.01907583]
[1750125001954,18.64964886,152.04,151.99,8.01907583]
[1750125002155,28.42,152.05,151.99,8.01907583]
[1750125002376,36.43907583,152.05,151.96,0.42648471]
[1750125002582,8.01907583,152.04,151.99,8.01907583]
[1750125002765,18.64964886,152.04,151.98,8.01907583]
[1750125003072,26.66872469,152.04,151.99,6.57938022]
[1750125003258,54.42,152.05,152.0,8.01907583]
[1750125003658,54.42,152.05,152.01,8.01907583]
[1750125003976,28.42,152.05,152.01,8.01907583]
[1750125004971,28.42,152.05,152.02,6.57808183]
[1750125005558,28.42,152.05,152.01,8.01907583]
[1750125005870,28.42,152.05,152.01,14.59754038]
[1750125006971,28.42,152.05,152.01,8.01907583]
[1750125007173,28.42,152.05,152.01,14.59752572]
[1750125007380,8.01907583,152.04,151.99,6.57930782]
[1750125007681,36.43907583,152.05,152.0,8.01907583]
[1750125008568,28.42,152.05,152.01,8.01907583]
[1750125009360,8.01907583,152.04,151.99,14.59844949]
[1750125009980,8.01907583,152.04,152.0,8.01907583]
[1750125010183,8.01907583,152.04,151.94,0.14216157]
[1750125010184,18.64964886,151.99,151.92,8.01907583]
[1750125010374,8.01907583,151.96,151.93,30.0]
[1750125010566,8.01907583,151.96,151.91,14.60192093]
[1750125010983,8.01907583,151.97,151.92,8.01907583]
[1750125011287,8.01907583,151.98,151.93,8.01907583]
[1750125011488,8.01907583,151.97,151.93,8.01907583]
[1750125012367,8.01907583,151.97,151.93,14.60083701]
[1750125012568,8.01907583,151.97,151.93,6.58176118]
[1750125012988,41.53946256,151.99,151.93,6.58176118]
[1750125013296,34.96,151.99,151.93,14.60083701]
[1750125013495,34.96,151.99,151.95,8.01907583]
[1750125013496,6.66,151.99,151.95,8.01907583]
[1750125013663,6.66,151.99,151.97,8.01907583]
[1750125013863,6.66,151.99,151.98,8.01907583]
[1750125014278,6.66,151.99,151.97,8.01907583]
[1750125015101,14.67907583,152.05,151.98,8.01907583]
[1750125015263,14.67907583,152.05,152.0,8.01907583]
[1750125015460,14.67907583,152.05,152.01,8.01907583]
[1750125016369,14.67907583,152.05,152.0,8.01907583]
[1750125017499,8.01907583,152.04,152.0,6.57893206]
[1750125017792,8.01907583,152.03,151.99,14.59834207]
[1750125017993,8.01907583,152.02,151.98,8.01907583]
[1750125018290,8.01907583,152.01,151.96,14.59968236]
[1750125018494,8.01907583,152.0,151.96,14.59968236]
[1750125018666,8.01907583,152.01,151.97,8.01907583]
[1750125018873,8.01907583,152.02,151.97,8.01907583]
[1750125019488,28.28,152.03,151.98,6.57981313]
[1750125019699,28.28,152.03,151.99,8.01907583]
[1750125019911,6.66,152.05,151.98,6.57981313]
[1750125020199,6.66,152.05,152.01,8.01907583]
[1750125020873,14.67907583,152.05,152.0,8.01907583]
[1750125021698,8.01907583,152.01,151.97,6.5802461]
[1750125021994,18.64964886,152.04,151.98,8.01907583]
[1750125021995,8.01907583,152.03,151.98,8.01907583]
[1750125022704,8.01907583,152.03,151.98,14.59873092]
[1750125023282,8.01907583,152.02,151.98,6.57965509]
[1750125023482,6.57591898,152.07,152.0,8.01907583]
[1750125023678,8.01907583,152.04,152.0,8.01907583]
[1750125024095,8.01907583,152.04,151.99,8.01907583]
[1750125024480,14.67907583,152.06,152.01,8.01907583]
[1750125024902,14.67907583,152.06,152.01,14.59738183]
[1750125025790,8.01907583,152.05,152.0,14.5979219]
[1750125026309,6.66,152.06,152.01,8.01907583]
[1750125026716,6.66,152.06,152.0,14.5979219]
[1750125026891,13.23639769,152.06,152.0,14.5979219]
[1750125027090,18.64964886,152.05,152.0,8.01907583]
[1750125027316,8.01907583,152.04,151.99,14.59833667]
[1750125027518,26.66872469,152.05,152.0,8.01907583]
[1750125028023,18.64964886,152.05,152.0,8.01907583]